bitfinex/quotes_ETHUSD_20260119
["timestamp","ask_amount","ask_price","bid_price","bid_amount"]
[1768860840039,1.3613774,3195.3,3194.7,0.00080096]
[1768860840491,0.95303422,3195.3,3194.7,0.00080096]
[1768860840689,0.95303422,3195.2,3194.3,0.00080072]
[1768860840893,0.00080072,3194.7,3194.1,0.00080088]
[1768860842192,0.00080072,3194.7,3193.5,0.0008008]
[1768860842193,0.95383518,3194.2,3193.5,0.0008008]
[1768860842805,4.08452435,3194.2,3193.5,0.0008008]
[1768860842953,0.72151137,3194.1,3193.5,0.0008008]
[1768860843157,0.95383518,3194.2,3193.5,0.0008008]
[1768860843399,0.00080096,3194.2,3193.5,0.0008008]
[1768860843552,3.13149974,3194.2,3193.5,0.0008008]
[1768860843887,4.08453396,3194.2,3193.5,0.0008008]
[1768860844051,0.00080096,3194.2,3193.5,0.0008008]
[1768860844255,0.95383494,3194.7,3194.3,0.0008008]
[1768860844256,0.95230678,3194.7,3194.3,0.0008008]
[1768860844653,3.12989045,3195.0,3194.3,0.0008008]
[1768860844859,0.33333914,3194.9,3194.3,0.0008008]
[1768860845579,6.26043354,3195.1,3194.3,0.0008008]
[1768860845782,3.13059345,3195.1,3194.3,0.0008008]
[1768860846159,6.26041218,3195.1,3194.3,0.0008008]
[1768860846364,3.13059345,3195.1,3194.3,0.0008008]
[1768860846673,3.1306413,3195.1,3194.3,0.0008008]
[1768860847010,0.72134103,3195.0,3194.3,0.0008008]
[1768860848091,0.00080096,3195.1,3194.3,0.0008008]
[1768860852481,0.00080096,3195.1,3194.6,0.002]
[1768860852678,0.95383518,3195.1,3194.6,0.002]
[1768860853624,0.95303422,3195.0,3194.6,0.002]
[1768860854818,0.95303422,3195.0,3194.3,0.0028008]
[1768860855121,6.26042144,3195.1,3193.8,0.00080104]
[1768860855122,0.95383518,3194.5,3193.8,0.00080104]
[1768860856114,0.00080096,3194.5,3193.8,0.00080104]
[1768860856688,0.0008008,3194.7,3193.8,0.00080104]
[1768860856888,0.0008008,3194.7,3194.1,0.00080104]
[1768860858279,0.00080096,3195.1,3194.3,0.00080088]
[1768860858693,0.31305672,3195.0,3194.3,0.00080088]
[1768860859095,0.44803422,3194.9,3194.3,0.00080088]
[1768860860415,3.57802353,3194.9,3194.3,0.00080088]
[1768860861915,0.95303422,3195.0,3194.3,0.00080088]
[1768860862101,3.12998841,3194.9,3194.3,0.00080088]
[1768860862406,0.72136251,3194.9,3194.3,0.00080088]
[1768860863997,0.95303422,3195.0,3194.3,0.00080088]
[1768860864678,0.95303422,3195.0,3194.6,0.002]
[1768860864883,0.95303422,3195.0,3194.3,0.00080088]
[1768860865102,0.505,3194.9,3194.3,0.00280088]
[1768860865514,0.505,3194.9,3193.6,10.47286908]
[1768860865717,0.505,3194.9,3193.7,0.76074666]
[1768860865718,0.00080104,3194.2,3193.7,0.76074666]
[1768860865917,0.00080104,3194.5,3193.8,0.00080112]
[1768860866117,0.00080088,3194.7,3194.1,0.00080112]
[1768860866323,0.505,3194.9,3194.3,0.00080096]
[1768860867886,1.23526576,3195.4,3194.3,0.00080096]
[1768860869081,1.23526576,3195.4,3194.7,0.00080104]
[1768860870934,0.00080096,3195.4,3194.7,0.00080104]
[1768860871748,1.54828048,3195.4,3194.7,0.00080104]
[1768860872303,1.23526576,3195.4,3194.7,0.00080104]
[1768860873034,0.00080096,3195.4,3194.7,0.00080104]
[1768860873919,1.23526576,3195.4,3194.7,0.00080104]
[1768860876902,0.001,3195.1,3194.7,0.00080104]
[1768860877131,1.23526576,3195.4,3194.7,0.00080104]
[1768860877544,0.00080096,3195.4,3194.7,1.16172718]
[1768860877717,1.23526552,3195.7,3195.0,0.00080104]
[1768860878761,0.00080072,3195.7,3195.0,0.00080104]
[1768860879116,0.00080072,3195.7,3195.0,6.26058194]
[1768860879338,0.00080072,3195.7,3195.0,7.42150808]
[1768860879534,1.7472656,3196.0,3195.3,0.0008008]
[1768860879736,0.0008008,3196.0,3195.3,0.0008008]
[1768860880322,0.0008008,3196.0,3195.3,1.16172694]
[1768860880652,1.23526576,3196.3,3195.3,1.16172694]
[1768860880843,1.23526576,3196.3,3195.6,0.00080088]
[1768860881352,1.67164622,3196.3,3195.6,0.00080088]
[1768860881849,1.23526576,3196.3,3195.6,0.00080088]
[1768860882953,0.00080096,3196.3,3195.6,0.00080088]
[1768860883551,0.00080096,3196.3,3195.6,6.25940646]
[1768860883754,0.00080096,3196.3,3195.7,1.89164125]
[1768860884138,0.00080064,3196.7,3195.9,0.00080104]
[1768860884454,0.00080064,3196.7,3195.9,1.89244229]
[1768860884862,1.80097139,3198.3,3197.0,1.89164125]
[1768860885042,0.00080104,3198.4,3197.2,1.89244221]
[1768860885220,0.00080104,3198.4,3197.5,1.89244213]
[1768860885543,0.00080104,3198.4,3197.6,6.254691]
[1768860885850,1.80277275,3198.7,3198.0,0.00080112]
[1768860886058,0.69227728,3198.6,3198.0,0.00080112]
[1768860886223,0.512,3198.6,3198.0,0.00080112]
[1768860886549,0.00180136,3198.7,3198.0,1.89244237]
[1768860887059,0.512,3198.9,3198.3,0.00080144]
[1768860887352,3.12652228,3199.3,3198.3,0.00080144]
[1768860887530,0.512,3198.8,3198.3,0.00080144]
[1768860888253,0.00080088,3199.3,3198.3,0.00080144]
[1768860888554,0.5128008,3199.0,3198.3,0.00080144]
[1768860889050,0.001,3198.4,3198.3,0.00080144]
[1768860889252,0.512,3198.7,3198.3,0.00080144]
[1768860889470,0.512,3198.8,3198.3,0.00080144]
[1768860890062,0.0008008,3199.0,3198.3,0.00080144]
[1768860890230,0.512,3198.8,3198.3,0.00080144]
[1768860890435,0.512,3198.8,3197.5,1.89244213]
[1768860890436,1.80177251,3198.4,3197.5,3.1282417]
[1768860890650,1.80177251,3198.4,3197.5,0.00080088]
[1768860891027,1.80097139,3198.2,3197.5,0.00080088]
[1768860891623,0.00080112,3198.4,3197.5,0.00080088]
[1768860891624,0.511,3198.1,3197.5,0.00080088]
[1768860892219,1.80177251,3198.4,3197.5,0.00080088]
[1768860892569,0.69117725,3198.3,3197.5,0.00080088]
[1768860893122,0.00080112,3198.4,3197.5,0.00080088]
[1768860893342,0.511,3198.3,3197.5,0.00080088]
[1768860895599,0.00080112,3198.4,3197.5,0.00080088]
[1768860895870,0.511,3198.3,3197.5,0.00080088]
[1768860897242,0.00080112,3198.4,3197.5,2.18042015]
[1768860897487,0.0008008,3199.0,3197.5,0.00080088]
[1768860897649,2.00196938,3199.3,3198.6,0.00080088]
[1768860897960,2.00196938,3199.3,3198.3,0.00080152]
[1768860898160,2.00196938,3199.0,3198.3,0.00080152]
[1768860899245,0.511,3198.9,3198.3,0.00080152]
[1768860899595,3.63709205,3198.9,3198.3,0.00080152]
[1768860899782,1.38749536,3198.9,3198.3,0.00080152]
[1768860900077,2.0011685,3198.8,3198.3,0.00080152]
[1768860900463,0.00080088,3199.0,3198.3,0.00080152]
[1768860900464,0.511,3198.7,3198.3,0.00080152]
[1768860900887,0.00080088,3199.0,3198.3,0.00080152]
[1768860901197,0.511,3198.9,3198.3,0.00080152]
[1768860901405,0.511,3198.8,3198.3,0.00080152]
[1768860901757,0.511,3199.1,3198.4,2.17961927]
[1768860902106,0.511,3199.1,3198.6,0.00080096]
[1768860902258,0.00080088,3199.3,3198.6,2.18042023]
[1768860902585,0.00080048,3199.9,3199.2,0.00080072]
[1768860903052,2.0011685,3200.1,3199.5,0.00080056]
[1768860903487,0.0008008,3200.3,3199.5,0.00080056]
[1768860903684,0.511,3200.2,3199.5,0.00080056]
[1768860904050,0.20099773,3200.3,3199.5,0.00080056]
[1768860904792,0.71199773,3200.3,3199.5,0.00080056]
[1768860904993,3.83675744,3200.3,3199.5,0.00080056]
[1768860905163,2.0011685,3200.2,3199.5,0.00080056]
[1768860905365,0.00080072,3199.6,3199.0,6.25195372]
[1768860905774,0.00080056,3199.9,3199.2,0.0008008]
[1768860906507,0.20099773,3200.3,3199.2,0.0008008]
[1768860906508,0.0008008,3200.3,3199.5,0.00080064]
[1768860906857,0.0008008,3200.3,3199.5,2.18041991]
[1768860907259,0.0008008,3200.3,3199.5,0.00080064]
[1768860907460,0.20099773,3200.3,3199.5,0.00080064]
[1768860908159,0.0008008,3200.3,3199.5,2.18041991]
[1768860909389,3.12550949,3200.3,3199.5,0.00080064]
[1768860909715,0.0008008,3200.3,3199.5,0.00080064]
[1768860909922,0.0008008,3200.3,3199.5,2.18041991]
[1768860911996,0.0008008,3200.3,3199.6,6.25078134]
[1768860912197,0.0008008,3200.3,3199.6,8.43040061]
[1768860912390,0.0008008,3200.3,3199.6,5.30500994]
[1768860913115,0.0008008,3200.3,3199.8,0.002]
[1768860913321,0.001,3200.0,3199.8,0.002]
[1768860913536,0.0008008,3200.3,3199.8,0.002]
[1768860914007,0.51180112,3200.9,3200.0,2.17961927]
[1768860914008,0.00080112,3200.9,3200.0,2.17961927]
[1768860914206,0.00080104,3202.3,3200.5,0.0008012]
[1768860914439,3.12444445,3201.4,3200.5,0.0008012]
[1768860914595,0.00080104,3202.3,3200.6,2.17961927]
[1768860914931,3.12355655,3202.3,3201.5,0.00080128]
[1768860915116,6.24632181,3202.3,3201.5,0.00080128]
[1768860915430,6.24632181,3202.3,3201.0,0.0008012]
[1768860915431,0.00080128,3201.9,3201.0,0.0008012]
[1768860915635,0.51,3201.8,3201.0,0.0008012]
[1768860916240,3.12334072,3201.7,3201.0,0.0008012]
[1768860916397,0.00080128,3201.9,3201.0,0.0008012]
[1768860916398,0.31233407,3201.6,3201.0,0.0008012]
[1768860916599,0.51080128,3201.9,3201.0,0.0008012]
[1768860916840,3.12324317,3201.8,3201.0,0.0008012]
[1768860917348,6.24649436,3201.8,3201.0,0.0008012]
[1768860918534,0.00080128,3201.9,3201.0,0.0008012]
[1768860918734,0.51,3201.7,3201.0,0.0008012]
[1768860919239,2.5111685,3201.7,3201.0,0.0008012]
[1768860919399,0.25111685,3201.6,3201.0,0.0008012]
[1768860920338,0.00080128,3201.9,3201.0,0.0008012]
[1768860920501,0.00080128,3201.9,3201.0,2.18042047]
[1768860921443,0.00080128,3201.9,3201.0,5.30443466]
[1768860922149,0.00080128,3201.9,3201.0,8.4284584]
[1768860922326,0.00080128,3201.9,3201.1,2.17961927]
[1768860922530,0.00080128,3201.9,3201.2,3.12382856]
[1768860922713,0.00080128,3201.9,3201.2,5.30344783]
[1768860923107,0.00080128,3201.9,3201.2,6.65526425]
[1768860923315,0.00080128,3201.9,3201.2,3.53143569]
[1768860923529,0.00080128,3201.9,3201.2,2.68861927]
[1768860924128,3.12358816,3202.3,3201.5,0.00080136]
[1768860924332,6.24637528,3202.3,3201.5,0.00080136]
[1768860924750,0.00080104,3202.3,3201.5,0.00080136]
[1768860926721,0.001,3201.6,3201.5,0.00080136]
[1768860926918,0.00080104,3202.3,3201.5,0.00080136]
[1768860927554,0.00080104,3202.3,3201.5,2.82160429]
[1768860928755,0.00080104,3202.3,3201.6,2.82080293]
[1768860930543,0.00080104,3202.3,3201.7,3.32980293]
[1768860930852,0.00080104,3202.3,3201.7,6.45312451]
[1768860931056,0.00080072,3202.6,3201.8,2.82080293]
[1768860931240,0.00080072,3202.6,3201.9,2.82160405]
[1768860931442,0.00080088,3202.9,3202.1,2.82080293]
[1768860931644,0.00080088,3202.9,3202.2,3.33060373]
[1768860932655,0.00080064,3203.2,3202.2,0.5098008]
[1768860932835,0.00080064,3203.2,3202.5,2.82160389]
[1768860933965,0.00080064,3203.2,3202.6,2.82080293]
[1768860934135,0.00080064,3203.2,3202.7,0.509]
[1768860934459,2.57866606,3203.1,3202.7,0.509]
[1768860934863,5.70068269,3203.1,3202.7,0.509]
[1768860935658,5.70068269,3203.1,3202.7,0.33222641]
[1768860935960,3.12269751,3203.2,3202.5,2.82160389]
[1768860936455,0.00080064,3203.2,3202.5,2.82160389]
[1768860936667,0.00080064,3203.2,3202.7,5.94313821]
[1768860936961,0.00080064,3203.2,3202.8,0.509]
[1768860938239,2.5794667,3203.2,3202.5,0.50980096]
[1768860939163,3.12197558,3203.1,3202.5,0.50980096]
[1768860939969,0.001,3202.9,3202.5,0.50980096]
[1768860940494,0.00080064,3203.2,3202.6,2.82080293]
[1768860940941,0.00080072,3203.6,3202.8,2.82160365]
[1768860941135,0.00080072,3203.6,3202.9,6.16193803]
[1768860941654,0.00080072,3203.6,3202.9,3.0397675]
[1768860943735,0.00080072,3203.6,3202.8,0.00080072]
[1768860944073,3.64761617,3203.6,3202.8,0.00080072]
[1768860944372,0.62514488,3203.6,3202.8,0.00080072]
[1768860945995,3.12158576,3203.5,3202.8,0.00080072]
[1768860947086,6.24317152,3203.5,3202.8,0.00080072]
[1768860947299,3.12158576,3203.5,3202.8,0.00080072]
[1768860947706,3.74666417,3203.6,3202.8,0.00080072]
[1768860947707,3.74667453,3203.6,3202.8,0.00080072]
[1768860949264,3.12233037,3203.6,3202.8,3.04056822]
[1768860949695,0.00080072,3203.6,3202.8,3.04056822]
[1768860949894,3.53247129,3203.5,3202.8,0.00080072]
[1768860950055,3.53247129,3203.5,3202.5,0.00080096]
[1768860950056,3.02247129,3203.1,3202.5,0.00080096]
[1768860950491,3.02327225,3202.9,3202.2,0.0008008]
[1768860952362,3.02247129,3202.7,3202.2,0.0008008]
[1768860953896,0.00080096,3202.9,3202.2,3.06040412]
[1768860954295,0.00080096,3202.9,3202.2,0.0008008]
[1768860954476,3.3987566,3202.9,3202.2,0.0008008]
[1768860954793,3.08977873,3202.9,3202.2,0.0008008]
[1768860955288,0.00080096,3202.9,3202.2,3.06040412]
[1768860955705,3.09077849,3203.2,3202.2,3.06040412]
[1768860955706,0.00180072,3203.2,3202.2,3.06040412]
[1768860955892,0.00180072,3203.2,3202.6,3.05960332]
[1768860956093,3.12122067,3203.9,3202.6,3.05960332]
[1768860956094,3.08977857,3204.4,3202.6,3.36564376]
[1768860956396,3.08977857,3204.4,3203.3,6.18131421]
[1768860956696,3.08977857,3204.4,3203.4,3.56860332]
[1768860956876,0.0008008,3204.4,3203.4,3.56860332]
[1768860958179,3.08897777,3204.3,3203.4,0.509]
[1768860958378,3.08977833,3204.1,3203.4,0.509]
[1768860958576,6.21080717,3204.1,3203.4,0.509]
[1768860959904,0.0008008,3204.4,3203.7,3.06040396]
[1768860960194,0.0008008,3204.4,3203.7,3.36644436]
[1768860960695,0.0008008,3204.4,3203.7,0.30684104]
[1768860960900,3.08977857,3204.4,3203.7,0.00080064]
[1768860961396,0.0008008,3204.4,3203.7,0.00080064]
[1768860961765,3.08897777,3204.2,3203.2,0.0008008]
[1768860961972,3.08897777,3204.0,3203.2,0.0008008]
[1768860962198,0.00080064,3204.1,3203.2,3.06040412]
[1768860962373,0.30977848,3204.1,3203.2,3.06040412]
[1768860962781,3.12109862,3204.0,3203.2,3.06040412]
[1768860963979,6.24219724,3204.0,3203.2,3.06040412]
[1768860964179,3.12109862,3204.0,3203.2,3.06040412]
[1768860964379,6.24219724,3204.0,3203.2,3.06040412]
[1768860964669,6.89749481,3204.0,3203.2,3.06040412]
[1768860965173,0.31077848,3204.1,3203.3,3.05960332]
[1768860965487,0.00180064,3204.1,3203.3,3.05960332]
[1768860966774,0.00180064,3204.1,3203.2,6.24447969]
[1768860966775,3.12280721,3204.1,3203.2,6.18220489]
[1768860966971,0.00180064,3204.1,3203.3,3.05960332]
[1768860967174,0.00180064,3204.1,3203.3,6.18135471]
[1768860967475,0.00180064,3204.1,3203.3,3.05960332]
[1768860967780,0.00180064,3204.1,3203.3,6.7995868]
[1768860967990,0.00180064,3204.1,3203.4,3.05960332]
[1768860968183,0.00180064,3204.1,3203.5,3.56860332]
[1768860968974,0.00180064,3204.1,3203.6,3.12148832]
[1768860969913,0.00180064,3204.1,3203.6,6.18109164]
[1768860970299,0.00180064,3204.1,3203.6,9.30257996]
[1768860970799,0.00180064,3204.1,3203.6,6.18109164]
[1768860971003,0.0008008,3204.4,3203.8,6.18089678]
[1768860971207,6.20939991,3205.0,3204.3,0.0008008]
[1768860971518,9.32952471,3205.0,3204.3,0.0008008]
[1768860972027,6.20939991,3205.0,3204.3,0.0008008]
[1768860972249,9.32952471,3205.0,3204.3,0.0008008]
[1768860972510,10.26459893,3205.0,3204.3,0.0008008]
[1768860975102,10.77459893,3205.0,3204.3,0.0008008]
[1768860975306,0.001,3204.7,3204.3,0.0008008]
[1768860977381,0.00029734,3205.0,3204.4,3.05960332]
[1768860977581,0.00029734,3205.0,3204.5,3.56860332]
[1768860977821,0.00029734,3205.0,3204.6,3.41646365]
[1768860979482,0.00029734,3205.0,3204.6,6.53696837]
[1768860979899,0.00029734,3205.0,3204.6,3.41646365]
[1768860980717,0.00029734,3205.0,3204.6,6.53697405]
[1768860981042,0.00029734,3205.0,3204.3,0.0008008]
[1768860981043,3.08927511,3205.0,3204.3,0.0008008]
[1768860981417,3.08927511,3205.0,3204.3,3.12153147]
[1768860981614,0.00029734,3205.0,3204.3,0.0008008]
[1768860981849,0.00029734,3205.0,3204.3,3.06040412]
[1768860982005,3.12046183,3205.0,3204.3,3.99063421]
[1768860982202,3.12046183,3205.0,3204.3,0.93103089]
[1768860982203,0.00029734,3205.0,3204.3,0.93103089]
[1768860982402,3.12049909,3205.0,3204.3,0.0008008]
[1768860983145,0.00029734,3205.0,3204.3,0.0008008]
[1768860983328,3.12043204,3205.0,3204.3,0.0008008]
[1768860984146,0.00029734,3205.0,3204.3,0.0008008]
[1768860984721,3.44600016,3205.0,3204.3,0.0008008]
[1768860987745,0.00029734,3205.0,3204.4,3.57458748]
[1768860988450,0.00029734,3205.0,3204.6,0.002]
[1768860988611,0.001,3204.7,3204.6,0.002]
[1768860988813,3.44600016,3205.0,3204.6,0.002]
[1768860989438,3.44600016,3205.0,3204.3,0.0028008]
[1768860989439,3.44570282,3204.9,3204.3,0.0028008]
[1768860990564,3.44570282,3204.8,3204.3,0.0028008]
[1768860992438,6.56605509,3204.8,3204.3,0.0028008]
[1768860992779,3.12026126,3204.9,3204.3,0.0028008]
[1768860993076,0.00029734,3205.0,3204.3,3.67955073]
[1768860993383,0.00029734,3205.0,3204.5,3.34224532]
[1768860994234,0.00029734,3205.0,3204.6,3.12051426]
[1768860994436,0.00029734,3205.0,3204.6,3.34224532]
[1768860995669,0.00029734,3205.0,3204.4,3.85124532]
[1768860995977,0.00029734,3205.0,3204.4,0.509]
[1768860996133,3.70252278,3205.0,3204.3,0.0028008]
[1768860996338,0.33881918,3205.0,3204.3,3.34504612]
[1768860996571,0.00029734,3205.0,3204.3,3.34504612]
[1768860996867,6.48419223,3205.0,3204.3,0.0028008]
[1768860997234,3.36400094,3205.0,3204.3,0.0028008]
[1768860997433,0.00029734,3205.0,3204.4,3.85124532]
[1768860997662,0.00029734,3205.0,3204.5,3.72764993]
[1768860998478,0.00029734,3205.1,3204.7,3.34224532]
[1768860998678,0.00080064,3205.4,3204.7,3.34224532]
[1768860999780,0.00080048,3205.7,3204.7,3.34224532]
[1768860999977,3.3637036,3205.6,3205.0,0.00080072]
[1768861000582,3.12024397,3205.7,3205.0,0.00080072]
[1768861000583,6.48334172,3205.5,3205.0,0.00080072]
[1768861000948,3.3637036,3205.5,3205.0,0.00080072]
[1768861001679,0.001,3205.1,3205.0,0.00080072]
[1768861004668,3.55984466,3205.1,3204.6,0.00080064]
[1768861004976,3.55984466,3205.1,3204.6,0.31294065]
[1768861005177,3.55984466,3205.1,3204.6,0.00080064]
[1768861005869,0.001,3205.1,3204.6,0.00080064]
[1768861008780,0.001,3205.1,3204.6,3.52912979]
[1768861009452,3.55984466,3205.1,3204.6,0.00080064]
[1768861011289,0.001,3205.1,3204.6,3.52912979]
[1768861011488,0.001,3205.1,3204.8,3.52832915]
[1768861012859,0.001,3205.1,3204.7,0.35291298]
[1768861013265,0.001,3204.8,3204.7,0.35291298]
[1768861013472,0.00080072,3205.4,3204.7,0.35291298]
[1768861013794,0.00080072,3205.4,3203.1,0.002]
[1768861013795,3.44812542,3203.5,3203.1,0.002]
[1768861013979,3.44812542,3203.5,3203.0,0.002]
[1768861014181,3.44812542,3203.5,3203.1,2e-08]
[1768861014486,3.79301804,3203.5,3202.8,0.0008008]
[1768861014682,3.79301804,3203.5,3202.2,0.0008008]
[1768861014683,3.44812542,3203.1,3202.2,0.0008008]
[1768861014909,0.0008008,3203.2,3202.6,0.509]
[1768861015074,3.12233914,3203.6,3202.8,0.00080088]
[1768861015275,3.12233914,3203.6,3202.6,3.39274325]
[1768861015276,0.00080088,3203.2,3202.6,3.39274325]
[1768861015471,0.00080088,3203.2,3202.7,0.33935443]
[1768861015876,0.00080088,3203.2,3202.7,3.24856158]
[1768861016392,0.00080088,3203.2,3202.7,0.33935443]
[1768861016695,0.00080088,3203.2,3202.7,2.93431627]
[1768861017765,0.00080088,3203.2,3202.7,6.05666749]
[1768861019605,0.0008008,3203.6,3202.8,2.90622148]
[1768861020480,3.44892614,3204.1,3202.8,2.90622148]
[1768861020681,3.44892614,3204.1,3203.2,2.83480397]
[1768861020882,3.44892614,3204.1,3203.3,0.509]
[1768861021193,3.44812542,3204.0,3203.4,0.509]
[1768861021596,3.44812542,3204.0,3203.4,3.63065915]
[1768861021801,0.0934588,3204.4,3203.7,0.0008008]
[1768861021802,3.54158422,3204.4,3203.7,0.0008008]
[1768861022008,3.54158422,3204.4,3203.7,0.27722148]
[1768861022009,3.44812542,3204.3,3203.7,0.27722148]
[1768861022192,3.44812542,3204.3,3203.8,0.509]
[1768861023887,0.0934588,3204.4,3203.8,3.63023739]
[1768861024328,0.0934588,3204.4,3203.8,0.509]
[1768861024622,3.54158422,3204.4,3203.9,0.509]
[1768861024950,0.0008008,3204.7,3203.9,3.06544271]
[1768861025227,0.0008008,3204.7,3204.0,0.93160377]
[1768861025520,3.44812542,3204.6,3204.1,0.509]
[1768861026213,3.44812542,3204.6,3204.0,3.12189864]
[1768861026386,3.44812542,3204.6,3204.1,1.13330809]
[1768861026719,0.0008008,3204.7,3204.1,1.13330809]
[1768861027631,0.0008008,3204.7,3204.2,3.12090381]
[1768861033140,3.44892622,3204.7,3204.1,0.62430809]
[1768861033432,3.44892622,3204.7,3204.2,0.509]
[1768861033833,0.0008008,3204.7,3204.2,2.48590011]
[1768861034001,0.0008008,3204.7,3204.2,5.60675634]
[1768861034426,0.0008008,3204.7,3204.2,6.41886823]
[1768861034737,0.0008008,3204.7,3204.3,1.91614765]
[1768861035437,0.0008008,3204.7,3204.2,0.509]
[1768861036302,0.0008008,3204.7,3204.3,0.509]
[1768861036899,0.0008008,3204.7,3204.1,4.91766701]
[1768861037138,0.0008008,3204.7,3204.2,0.509]
[1768861037720,0.0008008,3204.7,3204.2,0.511]
[1768861038047,0.001,3204.4,3204.2,0.511]
[1768861038207,0.0008008,3204.7,3204.2,0.511]
[1768861038403,0.0008008,3204.7,3204.2,3.63188051]
[1768861039058,3.44812542,3204.6,3204.2,0.002]
[1768861039339,3.44812542,3204.6,3204.3,0.509]
[1768861040015,3.79301804,3204.6,3204.0,0.00080096]
[1768861040219,3.79301804,3204.6,3204.1,0.509]
[1768861041523,3.79301804,3204.6,3204.1,3.62999542]
[1768861041723,3.44812542,3204.6,3204.1,3.62999542]
[1768861042641,3.44812542,3204.6,3204.2,0.509]
[1768861044647,3.44812542,3204.6,3204.2,3.62987168]
[1768861045154,0.0008008,3204.7,3204.2,3.62987168]
[1768861048751,0.0008008,3204.7,3204.3,1.08621359]
[1768861048943,2.80931338,3205.0,3204.3,1.08621359]
[1768861048944,2.80931338,3205.0,3204.5,3.12061163]
[1768861051132,2.80931346,3205.4,3204.6,1.44619245]
[1768861051333,2.80931346,3205.4,3204.7,0.93639173]
[1768861051735,2.80931346,3205.4,3204.6,0.50980072]
[1768861052349,2.80931346,3205.4,3204.6,1.39739465]
[1768861052663,2.80931346,3205.4,3204.6,2.16125644]
[1768861053229,2.80931346,3205.4,3204.7,3.12041688]
[1768861055069,2.80931346,3205.4,3204.7,3.86495467]
[1768861055377,2.80931346,3205.4,3204.6,0.76466251]
[1768861055561,2.80851274,3205.3,3204.8,0.509]
[1768861056532,0.00080072,3205.4,3204.9,0.69794362]
[1768861058276,0.00080072,3205.4,3205.0,0.60635466]
[1768861061203,0.00080072,3205.4,3205.1,3.12002745]
[1768861061368,0.00080072,3205.4,3205.2,0.509]
[1768861062794,0.00080072,3205.4,3205.0,3.12010842]
[1768861063101,0.00080072,3205.4,3205.3,0.509]
[1768861063802,2.40287197,3205.5,3205.1,3.1199466]
[1768861064002,0.00080048,3205.7,3205.3,0.509]
[1768861064203,2.40287197,3205.6,3205.3,0.509]
[1768861064599,2.40287197,3205.6,3205.1,0.65860042]
[1768861064774,2.40287197,3205.6,3205.1,5.69457521]
[1768861064970,2.40287197,3205.6,3205.2,0.509]
[1768861065204,2.40287197,3205.6,3205.3,0.509]
[1768861065403,2.40287197,3205.6,3205.1,5.69457521]
[1768861065705,2.40287197,3205.6,3205.2,0.509]
[1768861068206,2.40287197,3205.6,3205.2,3.62891098]
[1768861068704,2.40287197,3205.9,3205.2,7.67817677]
[1768861068908,2.40367277,3206.0,3205.6,0.1048241]
[1768861069074,2.40367277,3206.0,3205.7,0.509]
[1768861072339,5.52038952,3207.7,3205.7,0.509]
[1768861072610,0.87781377,3209.0,3206.9,0.00080176]
[1768861072611,2.40287197,3207.5,3206.9,0.00080176]
[1768861072813,2.40287197,3207.5,3206.6,0.0008016]
[1768861072814,2.40287197,3207.2,3206.6,0.0008016]
[1768861072986,0.00080176,3207.3,3206.6,0.0008016]
[1768861072987,2.29023542,3207.0,3206.6,0.0008016]
[1768861073308,2.29023542,3207.0,3206.7,0.509]
[1768861073980,0.24036737,3207.1,3206.7,0.509]
[1768861074220,2.29023542,3207.2,3206.7,0.509]
[1768861074385,0.00080176,3207.3,3206.7,0.509]
[1768861074578,2.29103718,3207.3,3206.7,0.509]
[1768861077487,0.00080176,3207.3,3206.7,5.86341193]
[1768861078500,0.00080176,3207.3,3206.7,8.98188263]
[1768861078693,0.00080176,3207.3,3206.8,2.23594711]
[1768861080627,0.00080232,3207.9,3207.3,2.23594711]
[1768861080803,0.00080232,3207.9,3207.5,2.23594711]
[1768861081421,2.29123542,3208.5,3207.5,2.23594711]
[1768861081422,0.00050056,3208.5,3207.5,2.23594711]
[1768861081737,0.22970429,3208.5,3207.9,2.23674999]
[1768861082037,0.22970429,3208.5,3208.0,0.508]
[1768861082215,0.22970429,3208.5,3208.0,2.74394711]
[1768861082387,2.29023542,3208.3,3208.0,0.508]
[1768861082805,5.40715167,3208.3,3207.9,0.00080288]
[1768861083034,2.29023542,3208.3,3208.0,0.508]
[1768861087559,2.29023542,3208.2,3207.5,0.0008024]
[1768861087735,2.29023542,3208.0,3207.6,0.508]
[1768861088809,2.29123542,3208.0,3207.6,0.508]
[1768861089216,2.29023542,3207.9,3207.6,0.508]
[1768861091229,2.29023542,3207.8,3207.6,0.508]
[1768861091948,2.29023542,3207.8,3207.7,0.508]
[1768861092945,2.51935896,3207.8,3207.7,0.508]
[1768861093817,0.0008024,3207.9,3207.7,0.508]
[1768861094545,0.0008024,3207.9,3207.7,2.74394711]
[1768861096044,0.0008024,3207.9,3207.7,0.508]
[1768861103362,1.58078856,3207.9,3207.7,0.508]
[1768861103862,0.0008024,3207.9,3207.7,0.508]
[1768861104965,0.0008024,3207.9,3207.7,2.18539404]
[1768861108559,0.0008024,3207.9,3207.8,1.67739404]
[1768861108868,0.001,3208.0,3207.8,1.67739404]
[1768861109581,1.58078904,3208.3,3207.9,1.67739404]
[1768861109744,0.00080288,3208.3,3207.9,1.67739404]
[1768861111680,0.00080288,3208.3,3208.0,1.67739404]
[1768861111867,0.00080288,3208.3,3208.1,2.18539404]
[1768861112677,0.00080288,3208.3,3208.2,1.67739404]
[1768861113043,0.00050056,3208.5,3208.2,1.67739404]
[1768861113565,0.00050056,3208.5,3208.2,1.89593344]
[1768861114285,0.00050056,3208.5,3208.2,3.33553242]
[1768861114578,0.00050056,3208.5,3208.3,1.67739404]
[1768861116552,0.00050056,3208.5,3208.3,4.79427739]
[1768861117052,0.00050056,3208.5,3208.3,8.59427739]
[1768861117464,0.00050056,3208.5,3208.3,5.47739404]
[1768861118373,0.00050056,3208.5,3208.3,6.40948399]
[1768861119467,0.00050056,3208.5,3208.3,9.52636531]
[1768861121396,0.00050056,3208.5,3208.3,6.40948399]
[1768861121901,0.00050056,3208.5,3208.3,4.73208995]
[1768861122059,0.00050056,3208.5,3208.3,3.8]
[1768861122771,0.00050056,3208.5,3208.4,3.8]
[1768861123170,0.00050056,3208.5,3208.4,4.308]
[1768861125658,0.00050056,3208.5,3207.9,0.00080296]
[1768861125659,0.44394642,3208.5,3207.9,0.00080296]
[1768861125862,0.44344586,3208.3,3208.0,0.508]
[1768861126821,0.44344586,3208.3,3207.9,0.00080296]
[1768861127109,0.44344586,3208.3,3208.1,0.508]
[1768861127665,0.39883518,3208.2,3208.1,0.508]
[1768861128214,0.39883518,3208.2,3207.9,0.00080296]
[1768861128502,0.39883518,3208.2,3208.0,0.508]
[1768861128683,0.39883518,3208.2,3207.9,0.00080296]
[1768861128880,0.39883518,3208.2,3208.0,0.508]
[1768861130508,0.33382232,3208.1,3207.9,0.00080296]
[1768861131016,0.33382232,3208.3,3208.0,0.508]
[1768861131213,0.6789412,3208.3,3208.0,0.508]
[1768861133197,3.11724458,3208.5,3208.0,1.78107988]